fUSD/lending_fUSD_20241220
["ID","MTS","AMOUNT","RATE_DAILY","PERIOD"]
[346050592,1734660633258,-234.122011,0.00024996,12]
[346050593,1734660633267,-234.122011,0.00024996,11]
[346050594,1734660633277,-230.122011,0.00024996,10]
[346050595,1734660633287,-844.64,0.00024996,4]
[346050596,1734660633297,-500.0,0.00024996,4]
[346050597,1734660633306,-500.0,0.00024996,4]
[346050598,1734660633316,-500.0,0.00024996,4]
[346050599,1734660633326,-333.122011,0.00024997,3]
[346050600,1734660633336,-333.122011,0.00024997,4]
[346050601,1734660633345,-333.122011,0.00024997,5]
[346050602,1734660633355,-333.122011,0.00024997,6]
[346050603,1734660633365,-333.122011,0.00024997,7]
[346050604,1734660633374,-333.122011,0.00024997,10]
[346050605,1734660633384,-333.122011,0.00024997,11]
[346050606,1734660633394,-333.122011,0.00024997,12]
[346050607,1734660633405,-333.122011,0.00024997,13]
[346050608,1734660633414,-333.122011,0.00024997,14]
[346050609,1734660633424,-613.85420232,0.00024997,4]
[346050610,1734660633434,-16635.0,0.00024997,4]
[346050611,1734660633443,-500.0,0.00024997,4]
[346050612,1734660633452,-500.0,0.00024997,4]
[346050613,1734660633462,-500.0,0.00024997,4]
[346050614,1734660633471,-500.0,0.00024997,4]
[346050615,1734660633480,-500.0,0.00024997,4]
[346050616,1734660633490,-500.0,0.00024997,4]
[346050617,1734660633499,-500.0,0.00024997,4]
[346050618,1734660633509,-216.69004984,0.00024997,4]
[346050619,1734660633518,-296.78938223,0.00024998,2]
[346050620,1734660633528,-520.91190247,0.00024998,4]
[346050621,1734660633537,-508.1868907,0.00024998,4]
[346050622,1734660633547,-604.60215433,0.00024998,4]
[346050623,1734660633556,-511.8737762,0.00024998,4]
[346050624,1734660633567,-512.31136202,0.00024998,4]
[346050625,1734660633577,-520.63630514,0.00024998,4]
[346050626,1734660633586,-514.6005352,0.00024998,4]
[346050627,1734660633596,-515.50587602,0.00024998,4]
[346050628,1734660633605,-509.61831707,0.00024998,4]
[346050629,1734660633615,-517.73672453,0.00024998,4]
[346050630,1734660633624,-515.59364637,0.00024998,4]
[346050631,1734660633634,-503.06984298,0.00024998,4]
[346050632,1734660633643,-509.05149278,0.00024998,4]
[346050633,1734660633652,-506.64550128,0.00024998,4]
[346050634,1734660633663,-508.38090328,0.00024998,4]
[346050635,1734660633672,-514.66405307,0.00024998,4]
[346050636,1734660633683,-519.20603738,0.00024998,4]
[346050637,1734660633693,-507.1144482,0.00024998,4]
[346050638,1734660633702,-335.80604113,0.00024998,4]
[346050639,1734660633711,-610.88767847,0.00024998,4]
[346050640,1734660633721,-526.97101173,0.00024998,4]
[346050641,1734660633731,-541.23150647,0.00024998,4]
[346050642,1734660633740,-521.0126165,0.00024998,4]
[346050643,1734660633749,-587.18664032,0.00024998,4]
[346050644,1734660633759,-507.1245764,0.00024998,4]
[346050645,1734660633770,-506.13826364,0.00024998,4]
[346050646,1734660633779,-532.20690747,0.00024998,4]
[346050647,1734660633789,-520.76409678,0.00024998,4]
[346050648,1734660633798,-509.5682373,0.00024998,4]
[346050649,1734660633807,-521.10341691,0.00024998,4]
[346050650,1734660633817,-500.0,0.00024998,4]
[346050651,1734660633826,-500.0,0.00024998,4]
[346050652,1734660633836,-500.0,0.00024998,4]
[346050653,1734660633845,-500.0,0.00024998,4]
[346050654,1734660633855,-500.0,0.00024998,4]
[346050655,1734660633864,-500.0,0.00024998,4]
[346050656,1734660633874,-500.0,0.00024998,4]
[346050657,1734660633884,-519.79441804,0.00024998,4]
[346050658,1734660633893,-505.60396664,0.00024998,4]
[346050659,1734660633903,-529.43924227,0.00024998,4]
[346050660,1734660633913,-511.02739205,0.00024998,4]
[346050661,1734660633923,-481.61826079,0.00024998,4]
[346050662,1734660633932,-500.0,0.00024998,4]
[346050663,1734660633942,-500.0,0.00024998,4]
[346050664,1734660633951,-500.0,0.00024998,4]
[346050665,1734660633960,-500.0,0.00024998,4]
[346050666,1734660633970,-500.0,0.00024998,4]
[346050667,1734660633979,-500.0,0.00024998,4]
[346050668,1734660633988,-523.0487651,0.00024998,4]
[346050669,1734660633998,-500.0,0.00024998,4]
[346050670,1734660634007,-532.33633732,0.00024998,4]
[346050671,1734660634017,-520.14916365,0.00024998,4]
[346050672,1734660634026,-538.82622392,0.00024998,4]
[346050673,1734660634035,-521.06481358,0.00024998,4]
[346050674,1734660634045,-528.70743871,0.00024998,4]
[346050675,1734660634054,-167.85533212,0.00024998,4]
[346050676,1734660634063,-524.70514102,0.00024998,4]
[346050677,1734660634072,-500.0,0.00024998,4]
[346050678,1734660634081,-500.0,0.00024998,4]
[346050679,1734660634091,-518.62450244,0.00024998,4]
[346050680,1734660634100,-500.0,0.00024998,4]
[346050681,1734660634109,-500.0,0.00024998,4]
[346050682,1734660634118,-513.41857103,0.00024998,4]
[346050683,1734660634128,-500.0,0.00024998,4]
[346050684,1734660634137,-164.81226808,0.00024998,4]
[346050685,1734660634146,-1024.91859594,0.00024998,5]
[346050686,1734660634157,-533.02033967,0.00024998,4]
[346050687,1734660634166,-631.17,0.00024998,4]
[346050688,1734660634176,-521.26475878,0.00024998,4]
[346050689,1734660634185,-333.122011,0.00024998,3]
[346050690,1734660634195,-508.28980398,0.00024998,4]
[346050691,1734660634204,-333.122011,0.00024998,4]
[346050692,1734660634213,-535.71325538,0.00024998,4]
[346050693,1734660634223,-333.122011,0.00024998,5]
[346050694,1734660634232,-521.84984984,0.00024998,4]
[346050695,1734660634242,-500.0,0.00024998,4]
[346050696,1734660634251,-299.10346381,0.00024998,4]
[346050697,1734660634259,-333.122011,0.00024998,6]
[346050698,1734660634269,-515.29823831,0.00024998,4]
[346050699,1734660634279,-333.122011,0.00024998,7]
[346050700,1734660634288,-550.66474887,0.00024998,4]
[346050701,1734660634298,-333.122011,0.00024998,10]
[346050702,1734660634307,-500.0,0.00024998,2]
[346050703,1734660634317,-500.0,0.00024998,2]
[346050704,1734660634327,-500.0,0.00024998,2]
[346050705,1734660634338,-537.11710768,0.00024998,2]
[346050706,1734660634348,-333.122011,0.00024998,11]
[346050707,1734660634358,-500.0,0.00024998,4]
[346050708,1734660634368,-333.122011,0.00024998,12]
[346050709,1734660634377,-245.31641643,0.00024998,4]
[346050710,1734660634387,-333.122011,0.00024998,13]
[346050711,1734660634396,-521.96538559,0.00024998,4]
[346050712,1734660634407,-333.122011,0.00024998,14]
[346050713,1734660634416,-538.33898901,0.00024998,4]
[346050714,1734660634425,-522.32009494,0.00024998,4]
[346050715,1734660634435,-418.15347544,0.00024998,4]
[346050716,1734660634444,-524.7089223,0.00024998,4]
[346050717,1734660634453,-525.32004286,0.00024998,4]
[346050718,1734660634462,-521.56256368,0.00024998,4]
[346050719,1734660634471,-525.55239545,0.00024998,4]
[346050720,1734660634480,-500.0,0.00024998,4]
[346050721,1734660634489,-253.43246088,0.00024998,4]
[346050722,1734660634498,-500.0,0.00024998,4]
[346050723,1734660634508,-500.0,0.00024998,4]
[346050724,1734660634517,-500.0,0.00024998,4]
[346050725,1734660634526,-500.0,0.00024998,4]
[346050726,1734660634535,-517.42250212,0.00024998,4]
[346050727,1734660634544,-500.0,0.00024998,4]
[346050728,1734660634554,-203.97040263,0.00024998,4]
[346050729,1734660634563,-524.46875489,0.00024998,4]
[346050730,1734660634572,-565.2,0.00024998,4]
[346050731,1734660634581,-279.11023535,0.00024998,2]
[346050732,1734660634591,-16635.0,0.00024998,4]
[346050733,1734660634599,-16635.0,0.00024998,4]
[346050734,1734660634609,-500.0,0.00024998,4]
[346050735,1734660634619,-500.0,0.00024998,4]
[346050736,1734660634628,-500.0,0.00024998,4]
[346050737,1734660634638,-500.0,0.00024998,4]
[346050738,1734660634647,-500.0,0.00024998,4]
[346050739,1734660634657,-1601.1,0.00024998,4]
[346050740,1734660634667,-1601.1,0.00024998,4]
[346050741,1734660634677,-1601.1,0.00024998,4]
[346050742,1734660634690,-500.0,0.00024998,4]
[346050743,1734660634699,-500.0,0.00024998,4]
[346050744,1734660634708,-500.0,0.00024998,4]
[346050745,1734660634717,-500.0,0.00024998,4]
[346050746,1734660634728,-543.22541539,0.00024998,4]
[346050747,1734660634737,-500.0,0.00024998,4]
[346050748,1734660634746,-500.0,0.00024998,4]
[346050749,1734660634756,-500.0,0.00024998,4]
[346050750,1734660634765,-1041.04,0.00024998,4]
[346050751,1734660634774,-1041.04,0.00024998,4]
[346050752,1734660634783,-1041.04,0.00024998,4]
[346050753,1734660634793,-500.0,0.00024998,4]
[346050754,1734660634802,-500.0,0.00024998,4]
[346050755,1734660634811,-500.0,0.00024998,4]
[346050756,1734660634820,-531.01020884,0.00024998,4]
[346050757,1734660634829,-655.49,0.00024998,4]
[346050758,1734660634838,-655.49,0.00024998,4]
[346050759,1734660634848,-655.49,0.00024998,4]
[346050760,1734660634857,-847.45,0.00024998,4]
[346050761,1734660634866,-847.45,0.00024998,4]
[346050762,1734660634875,-847.45,0.00024998,4]
[346050763,1734660634884,-500.0,0.00024998,4]
[346050764,1734660634894,-500.0,0.00024998,4]
[346050765,1734660634903,-293.98540241,0.00024998,4]
[346050766,1734660634916,-500.0,0.00024998,4]
[346050767,1734660634925,-520.73485029,0.00024998,4]
[346050768,1734660634934,-1946.97,0.00024998,4]
[346050769,1734660634944,-1946.97,0.00024998,4]
[346050770,1734660634954,-1946.97,0.00024998,4]
[346050771,1734660634963,-629.43176668,0.00024998,4]
[346050772,1734660634972,-291.90354512,0.00024998,4]
[346050773,1734660634981,-500.0,0.00024998,4]
[346050774,1734660634990,-422.7066194,0.00024998,4]
[346050775,1734660634999,-500.0,0.00024998,4]
[346050776,1734660635008,-500.0,0.00024998,4]
[346050777,1734660635018,-433.18946457,0.00024998,4]
[346050778,1734660635027,-523.94698321,0.00024998,4]
[346050779,1734660635036,-307.41799166,0.00024998,4]
[346050780,1734660635045,-500.0,0.00024998,4]
[346050781,1734660635054,-500.0,0.00024998,4]
[346050782,1734660635063,-500.0,0.00024998,4]
[346050783,1734660635073,-519.27897204,0.00024998,4]
[346050784,1734660635082,-500.0,0.00024998,4]
[346050785,1734660635092,-500.0,0.00024998,4]
[346050786,1734660635101,-844.64,0.00024998,4]
[346050787,1734660635110,-844.64,0.00024998,4]
[346050788,1734660635120,-422.21764124,0.00024998,4]
[346050789,1734660635129,-500.0,0.00024998,4]
[346050790,1734660635138,-525.63905728,0.00024998,4]
[346050791,1734660635147,-500.0,0.00024998,4]
[346050792,1734660635159,-500.0,0.00024998,4]
[346050793,1734660635168,-500.0,0.00024998,4]
[346050794,1734660635177,-500.0,0.00024998,4]
[346050795,1734660635186,-178.11365722,0.00024998,4]
[346050796,1734660635195,-526.23059648,0.00024998,4]
[346050797,1734660635205,-500.0,0.00024998,4]
[346050798,1734660635214,-500.0,0.00024998,4]
[346050799,1734660635223,-502.55843522,0.00024998,4]
[346050800,1734660635231,-500.0,0.00024998,4]
[346050801,1734660635240,-500.0,0.00024998,4]
[346050802,1734660635250,-500.0,0.00024998,4]
[346050803,1734660635259,-504.12160632,0.00024998,4]
[346050804,1734660635268,-294.47269914,0.00024998,4]
[346050805,1734660635277,-524.04869987,0.00024998,4]
[346050806,1734660635286,-509.11646277,0.00024998,4]
[346050807,1734660635295,-547.50694933,0.00024998,4]
[346050808,1734660635304,-632.60643762,0.00024998,4]
[346050809,1734660635313,-572.40325463,0.00024998,4]
[346050810,1734660635322,-526.1877277,0.00024998,4]
[346050811,1734660635331,-500.0,0.00024998,4]
[346050812,1734660635340,-500.0,0.00024998,4]
[346050813,1734660635349,-500.0,0.00024998,4]
[346050814,1734660635358,-540.22859591,0.00024998,4]
[346050815,1734660635367,-506.83634315,0.00024998,4]
[346050816,1734660635376,-513.47921177,0.00024998,4]
[346050817,1734660635385,-518.98833518,0.00024998,4]
[346050818,1734660635393,-524.55158539,0.00024998,4]
[346050819,1734660635402,-640.68765085,0.00024999,2]
[346050820,1734660635413,-500.75650483,0.00024999,2]
[346050821,1734660635422,-2000.0,0.00024999,2]
[346050822,1734660635431,-500.0,0.00024999,4]
[346050823,1734660635440,-500.0,0.00024999,4]
[346050824,1734660635449,-500.0,0.00024999,4]
[346050825,1734660635458,-500.0,0.00024999,4]
[346050826,1734660635467,-500.0,0.00024999,4]
[346050827,1734660635476,-439.18345748,0.00024999,4]
[346050828,1734660635485,-500.0,0.00024999,4]
[346050829,1734660635494,-500.0,0.00024999,4]
[346050830,1734660635502,-500.0,0.00024999,2]
[346050831,1734660635511,-2031.2603,0.00024999,2]
[346050832,1734660635520,-500.0,0.00024999,4]
[346050833,1734660635529,-500.0,0.00024999,4]
[346050834,1734660635538,-500.0,0.00024999,4]
[346050835,1734660635547,-500.0,0.00024999,4]
[346050836,1734660635557,-500.0,0.00024999,4]
[346050837,1734660635566,-500.0,0.00024999,4]
[346050838,1734660635575,-340.8459367,0.00024999,4]
[346050839,1734660635584,-2543.13732,0.00024999,2]
[346050840,1734660635594,-16635.0,0.00024999,4]
[346050841,1734660635604,-16635.0,0.00024999,4]
[346050842,1734660635613,-5517.31663635,0.00024999,4]
[346050843,1734660635629,-507.16684718,0.00024999,4]
[346050875,1734660638535,-1105.852,0.00024699,2]
[346050876,1734660638545,-10610.51651647,0.00024999,4]
[346050877,1734660638554,-16635.0,0.00024999,4]
[346050878,1734660638564,-16635.0,0.00024999,4]
[346050879,1734660638573,-16635.0,0.00024999,4]
[346050880,1734660638582,-16635.0,0.00024999,4]
[346050881,1734660638591,-16635.0,0.00024999,4]
[346050882,1734660638600,-16635.0,0.00024999,4]
[346050883,1734660638609,-16635.0,0.00024999,4]
[346050884,1734660638619,-16635.0,0.00024999,4]
[346050885,1734660638628,-16635.0,0.00024999,4]
[346050886,1734660638637,-16635.0,0.00024999,4]
[346050887,1734660638646,-16635.0,0.00024999,4]
[346050888,1734660638655,-16635.0,0.00024999,4]
[346050889,1734660638665,-16635.0,0.00024999,4]
[346050890,1734660638675,-16635.0,0.00024999,4]
[346050891,1734660638686,-16635.0,0.00024999,4]
[346050892,1734660638695,-16635.0,0.00024999,4]
[346050893,1734660638705,-16635.0,0.00024999,4]
[346050894,1734660638714,-16635.09159436,0.00024999,4]
[346050895,1734660638723,-500.0,0.00024999,4]
[346050896,1734660638733,-500.0,0.00024999,4]
[346050897,1734660638742,-500.0,0.00024999,4]
[346050898,1734660638751,-519.95666979,0.00024999,4]
[346050899,1734660638762,-500.0,0.00024999,4]
[346050900,1734660638771,-500.0,0.00024999,4]
[346050901,1734660638780,-500.0,0.00024999,4]
[346050902,1734660638789,-500.0,0.00024999,4]
[346050903,1734660638799,-500.0,0.00024999,4]
[346050904,1734660638808,-500.0,0.00024999,4]
[346050905,1734660638817,-500.0,0.00024999,4]
[346050906,1734660638826,-500.0,0.00024999,4]
[346050907,1734660638835,-500.0,0.00024999,4]
[346050908,1734660638844,-500.0,0.00024999,4]
[346050909,1734660638853,-500.0,0.00024999,4]
[346050910,1734660638862,-500.0,0.00024999,4]
[346050911,1734660638871,-500.0,0.00024999,4]
[346050912,1734660638880,-500.0,0.00024999,4]
[346050913,1734660638889,-500.0,0.00024999,4]
[346050914,1734660638897,-308.00343715,0.00024999,4]
[346050915,1734660638906,-1601.1,0.00024999,4]
[346050916,1734660638918,-1601.1,0.00024999,4]
[346050917,1734660638927,-1601.1,0.00024999,4]
[346050918,1734660638936,-1601.1,0.00024999,4]
[346050919,1734660638945,-1601.1,0.00024999,4]
[346050920,1734660638955,-1601.1,0.00024999,4]
[346050921,1734660638965,-1601.1,0.00024999,4]
[346050922,1734660638979,-1601.1,0.00024999,4]
[346050924,1734660638989,-1601.1,0.00024999,4]
[346050925,1734660639001,-1601.1,0.00024999,4]
[346050926,1734660639015,-1601.1,0.00024999,4]
[346050928,1734660639027,-1601.1,0.00024999,4]
[346050929,1734660639039,-1601.1,0.00024999,4]
[346050930,1734660639048,-1601.1,0.00024999,4]
[346050931,1734660639058,-1601.1,0.00024999,4]
[346050932,1734660639068,-1601.1,0.00024999,4]
[346050933,1734660639078,-1601.1,0.00024999,4]
[346050934,1734660639090,-1601.1,0.00024999,4]
[346050935,1734660639101,-1601.1,0.00024999,4]
[346050936,1734660639111,-1601.1,0.00024999,4]
[346050937,1734660639120,-1601.19521928,0.00024999,4]
[346050938,1734660639130,-500.0,0.00024999,4]
[346050939,1734660639140,-500.0,0.00024999,4]
[346050940,1734660639151,-500.0,0.00024999,4]
[346050941,1734660639161,-500.0,0.00024999,4]
[346050942,1734660639171,-500.0,0.00024999,4]
[346050943,1734660639181,-500.0,0.00024999,4]
[346050944,1734660639190,-500.0,0.00024999,4]
[346050945,1734660639199,-500.0,0.00024999,4]
[346050946,1734660639209,-500.0,0.00024999,4]
[346050947,1734660639218,-500.0,0.00024999,4]
[346050948,1734660639227,-500.0,0.00024999,4]
[346050949,1734660639236,-648.34342002,0.00024999,4]
[346050950,1734660639246,-500.0,0.00024999,4]
[346050951,1734660639255,-500.0,0.00024999,4]
[346050952,1734660639264,-500.0,0.00024999,4]
[346050953,1734660639273,-500.0,0.00024999,4]
[346050954,1734660639283,-500.0,0.00024999,4]
[346050955,1734660639292,-441.35878198,0.00024999,4]
[346050956,1734660639301,-1041.04,0.00024999,4]
[346050957,1734660639311,-1041.04,0.00024999,4]
[346050958,1734660639320,-1041.04,0.00024999,4]
[346050959,1734660639329,-1041.04,0.00024999,4]
[346050960,1734660639338,-500.0,0.00024999,4]
[346050961,1734660639347,-1041.04,0.00024999,4]
[346050962,1734660639356,-500.0,0.00024999,4]
[346050963,1734660639365,-1041.04,0.00024999,4]
[346050964,1734660639374,-500.0,0.00024999,4]
[346050965,1734660639383,-1041.04,0.00024999,4]
[346050966,1734660639392,-500.0,0.00024999,4]
[346050967,1734660639402,-1041.04,0.00024999,4]
[346050968,1734660639411,-500.0,0.00024999,4]
[346050969,1734660639420,-1041.04,0.00024999,4]
[346050970,1734660639430,-500.0,0.00024999,4]
[346050971,1734660639440,-500.0,0.00024999,4]
[346050972,1734660639450,-1041.04,0.00024999,4]
[346050973,1734660639459,-500.0,0.00024999,4]
[346050974,1734660639469,-1041.04,0.00024999,4]
[346050975,1734660639479,-500.0,0.00024999,4]
[346050976,1734660639488,-1041.04,0.00024999,4]
[346050977,1734660639498,-500.0,0.00024999,4]
[346050978,1734660639507,-1041.04,0.00024999,4]
[346050979,1734660639516,-500.0,0.00024999,4]
[346050980,1734660639526,-1041.04,0.00024999,4]
[346050981,1734660639535,-500.0,0.00024999,4]
[346050982,1734660639543,-1041.04,0.00024999,4]
[346050983,1734660639552,-500.0,0.00024999,4]
[346050984,1734660639562,-1041.04,0.00024999,4]
[346050985,1734660639571,-500.0,0.00024999,4]
[346050986,1734660639581,-1041.04,0.00024999,4]
[346050987,1734660639590,-500.0,0.00024999,4]
[346050988,1734660639600,-1041.04,0.00024999,4]
[346050989,1734660639610,-637.23898995,0.00024999,4]
[346050990,1734660639620,-1041.04,0.00024999,4]
[346050991,1734660639629,-1041.04,0.00024999,4]
[346050992,1734660639638,-1041.09867799,0.00024999,4]
[346050993,1734660639647,-655.49,0.00024999,4]
[346050994,1734660639656,-655.49,0.00024999,4]
[346050995,1734660639666,-655.49,0.00024999,4]
[346050996,1734660639675,-655.49,0.00024999,4]
[346050997,1734660639688,-655.49,0.00024999,4]
[346050998,1734660639698,-655.49,0.00024999,4]
[346050999,1734660639707,-655.49,0.00024999,4]
[346051000,1734660639716,-655.49,0.00024999,4]
[346051001,1734660639726,-655.49,0.00024999,4]
[346051002,1734660639735,-655.49,0.00024999,4]
[346051003,1734660639744,-655.49,0.00024999,4]
[346051004,1734660639753,-655.49,0.00024999,4]
[346051005,1734660639765,-655.49,0.00024999,4]
[346051006,1734660639775,-655.49,0.00024999,4]
[346051007,1734660639784,-655.49,0.00024999,4]
[346051008,1734660639793,-655.49,0.00024999,4]
[346051009,1734660639802,-655.49,0.00024999,4]
[346051010,1734660639811,-655.49,0.00024999,4]
[346051011,1734660639820,-655.49,0.00024999,4]
[346051012,1734660639829,-655.49,0.00024999,4]
[346051013,1734660639838,-655.70134187,0.00024999,4]
[346051014,1734660639847,-847.45,0.00024999,4]
[346051015,1734660639857,-847.45,0.00024999,4]
[346051016,1734660639866,-847.45,0.00024999,4]
[346051017,1734660639875,-847.45,0.00024999,4]
[346051018,1734660639884,-847.45,0.00024999,4]
[346051019,1734660639894,-847.45,0.00024999,4]
[346051020,1734660639902,-847.45,0.00024999,4]
[346051021,1734660639912,-847.45,0.00024999,4]
[346051022,1734660639921,-847.45,0.00024999,4]
[346051023,1734660639931,-847.45,0.00024999,4]
[346051024,1734660639940,-847.45,0.00024999,4]
[346051025,1734660639950,-847.45,0.00024999,4]
[346051026,1734660639959,-847.45,0.00024999,4]
[346051027,1734660639968,-847.45,0.00024999,4]
[346051028,1734660639977,-847.45,0.00024999,4]
[346051029,1734660639986,-847.45,0.00024999,4]
[346051030,1734660639995,-847.45,0.00024999,4]
[346051031,1734660640005,-847.45,0.00024999,4]
[346051032,1734660640014,-847.45,0.00024999,4]
[346051033,1734660640023,-847.45,0.00024999,4]
[346051034,1734660640032,-847.62983629,0.00024999,4]
[346051035,1734660640041,-1946.97,0.00024999,4]
[346051036,1734660640050,-1946.97,0.00024999,4]
[346051037,1734660640059,-1946.97,0.00024999,4]
[346051038,1734660640068,-1946.97,0.00024999,4]
[346051039,1734660640076,-1946.97,0.00024999,4]
[346051040,1734660640085,-1946.97,0.00024999,4]
[346051041,1734660640094,-1946.97,0.00024999,4]
[346051042,1734660640103,-1946.97,0.00024999,4]
[346051043,1734660640112,-1946.97,0.00024999,4]
[346051044,1734660640121,-1946.97,0.00024999,4]
[346051045,1734660640130,-1946.97,0.00024999,4]
[346051046,1734660640139,-1946.97,0.00024999,4]
[346051047,1734660640148,-1946.97,0.00024999,4]
[346051048,1734660640157,-1946.97,0.00024999,4]
[346051049,1734660640166,-1946.97,0.00024999,4]
[346051050,1734660640175,-1946.97,0.00024999,4]
[346051051,1734660640184,-1946.97,0.00024999,4]
[346051052,1734660640193,-1946.97,0.00024999,4]
[346051053,1734660640202,-1946.97,0.00024999,4]
[346051054,1734660640211,-1946.97,0.00024999,4]
[346051055,1734660640220,-1946.97,0.00024999,4]
[346051056,1734660640228,-500.0,0.00024999,4]
[346051057,1734660640237,-500.0,0.00024999,4]
[346051058,1734660640246,-500.0,0.00024999,4]
[346051061,1734660640256,-500.0,0.00024999,4]
[346051063,1734660640265,-500.0,0.00024999,4]
[346051065,1734660640273,-500.0,0.00024999,4]
[346051066,1734660640282,-500.0,0.00024999,4]
[346051068,1734660640291,-500.0,0.00024999,4]
[346051070,1734660640301,-500.0,0.00024999,4]
[346051072,1734660640310,-500.0,0.00024999,4]
[346051073,1734660640319,-601.90167609,0.00024999,4]
[346051075,1734660640328,-544.33533013,0.00024999,4]
[346051077,1734660640337,-500.0,0.00024999,4]
[346051078,1734660640348,-500.0,0.00024999,4]
[346051080,1734660640357,-500.0,0.00024999,4]
[346051081,1734660640366,-844.64,0.00024999,4]
[346051082,1734660640375,-844.64,0.00024999,4]
[346051083,1734660640384,-500.0,0.00024999,4]
[346051084,1734660640392,-844.64,0.00024999,4]
[346051085,1734660640402,-489.53413953,0.00024999,4]
[346051086,1734660640411,-844.64,0.00024999,4]
[346051087,1734660640421,-844.64,0.00024999,4]
[346051088,1734660640432,-844.64,0.00024999,4]
[346051089,1734660640441,-844.64,0.00024999,4]
[346051090,1734660640450,-844.64,0.00024999,4]
[346051091,1734660640459,-844.64,0.00024999,4]
[346051092,1734660640468,-844.64,0.00024999,4]
[346051093,1734660640477,-844.64,0.00024999,4]
[346051094,1734660640486,-844.64,0.00024999,4]
[346051095,1734660640495,-844.64,0.00024999,4]
[346051096,1734660640505,-844.64,0.00024999,4]
[346051097,1734660640514,-844.64,0.00024999,4]
[346051098,1734660640523,-844.64,0.00024999,4]
[346051099,1734660640533,-844.64,0.00024999,4]
[346051100,1734660640542,-844.64,0.00024999,4]
[346051101,1734660640551,-844.64,0.00024999,4]
[346051102,1734660640560,-844.64,0.00024999,4]
[346051103,1734660640569,-844.84517597,0.00024999,4]
[346051104,1734660640578,-274.76423378,0.00024999,4]
[346051105,1734660640587,-500.0,0.00024999,4]
[346051106,1734660640595,-500.0,0.00024999,4]
[346051107,1734660640604,-500.0,0.00024999,4]
[346051108,1734660640613,-500.0,0.00024999,4]
[346051109,1734660640622,-500.0,0.00024999,4]
[346051110,1734660640632,-500.0,0.00024999,4]
[346051111,1734660640641,-500.0,0.00024999,4]
[346051112,1734660640651,-334.28151705,0.00024999,4]
[346051113,1734660640660,-500.0,0.00024999,4]
[346051114,1734660640678,-173.21333439,0.00024999,4]
[346051115,1734660640691,-500.0,0.00024999,4]
[346051116,1734660640700,-500.0,0.00024999,4]
[346051117,1734660640711,-500.0,0.00024999,4]
[346051118,1734660640721,-500.0,0.00024999,4]
[346051119,1734660640733,-500.0,0.00024999,4]
[346051120,1734660640742,-500.0,0.00024999,4]
[346051121,1734660640751,-500.0,0.00024999,4]
[346051122,1734660640761,-500.0,0.00024999,4]
[346051123,1734660640771,-430.56787867,0.00024999,4]
[346051124,1734660640780,-151.76648828,0.00024999,2]
[346051125,1734660640790,-151.76648828,0.00024999,2]
[346051126,1734660640799,-151.76648828,0.00024999,2]
[346051127,1734660640808,-151.76648828,0.00024999,2]
[346051128,1734660640817,-151.76648828,0.00024999,2]
[346051129,1734660640826,-151.76648828,0.00024999,2]
[346051130,1734660640835,-151.76648828,0.00024999,2]
[346051132,1734660640844,-151.76648828,0.00024999,2]
[346051134,1734660640854,-151.76648828,0.00024999,2]
[346051136,1734660640863,-151.76648828,0.00024999,2]
[346051138,1734660640872,-151.76648828,0.00024999,2]